[Event "Titled Tuesday Blitz January 03 Late 2023"]
[White "Andrews, Todd"]
[Black "Andreev, Eduard"]
[WhiteFideId "2012456"]
[BlackFideId "14103400"]
[WhiteElo "2220"]
[BlackElo "2413"]
[Result "0-1"]
[Round "09"]
[TimeControl "180+2"]
[Date "2023.01.03"]
[WhiteClock "0:00:30"]
[BlackClock "0:02:29"]

1. e4 {[%clk 0:03:00]}  c6 {[%clk 0:02:59]} 2. d4 {[%clk 0:03:00]}  d5 {[%clk 0:03:00]} 3. Nc3 {[%clk 0:03:01]}  dxe4 {[%clk 0:03:00]} 4. Nxe4 {[%clk 0:03:01]}  Nf6 {[%clk 0:03:01]} 5. Nxf6+ {[%clk 0:03:01]}  exf6 {[%clk 0:03:02]} 6. c3 {[%clk 0:03:02]}  Bd6 {[%clk 0:03:02]} 7. Bd3 {[%clk 0:03:02]}  O-O {[%clk 0:03:03]} 8. Qc2 {[%clk 0:03:03]}  Re8+ {[%clk 0:03:03]} 9. Ne2 {[%clk 0:03:04]}  h5 {[%clk 0:03:02]} 10. Be3 {[%clk 0:03:04]}  Nd7 {[%clk 0:03:01]} 11. O-O-O {[%clk 0:03:04]}  Nf8 {[%clk 0:03:02]} 12. Kb1 {[%clk 0:03:03]}  Be6 {[%clk 0:03:01]} 13. Nf4 {[%clk 0:02:50]}  Bxf4 {[%clk 0:03:00]} 14. Bxf4 {[%clk 0:02:51]}  b5 {[%clk 0:03:00]} 15. Bc1 {[%clk 0:02:34]}  a5 {[%clk 0:02:59]} 16. Rhe1 {[%clk 0:02:29]}  a4 {[%clk 0:02:59]} 17. Re3 {[%clk 0:02:18]}  Qd5 {[%clk 0:02:47]} 18. c4 {[%clk 0:02:10]}  bxc4 {[%clk 0:02:47]} 19. Be4 {[%clk 0:02:10]}  Qb5 {[%clk 0:02:47]} 20. a3 {[%clk 0:01:54]}  Ng6 {[%clk 0:02:45]} 21. Qe2 {[%clk 0:01:32]}  Nf4 {[%clk 0:02:34]} 22. Qf3 {[%clk 0:01:27]}  Nd3 {[%clk 0:02:33]} 23. Bxc6 {[%clk 0:01:17]}  Qb3 {[%clk 0:02:31]} 24. d5 {[%clk 0:01:00]}  Bg4 {[%clk 0:02:30]} 25. Rxe8+ {[%clk 0:00:30]}  Rxe8 {[%clk 0:02:29]} 0-1


[Site "https://www.chess.com"]

[Event "Titled Tuesday Blitz January 03 Late 2023"]
[White "Winterberg, Lukas"]
[Black "Chernov, Mikhail"]
[WhiteFideId "24622702"]
[BlackFideId "24143170"]
[WhiteElo "2402"]
[BlackElo "2205"]
[Result "0-1"]
[Round "09"]
[TimeControl "180+2"]
[Date "2023.01.03"]
[WhiteClock "0:00:01"]
[BlackClock "0:00:05"]

1. d4 {[%clk 0:02:33]}  d5 {[%clk 0:02:58]} 2. Bf4 {[%clk 0:02:32]}  Nf6 {[%clk 0:02:58]} 3. Nf3 {[%clk 0:02:31]}  c5 {[%clk 0:02:57]} 4. e3 {[%clk 0:02:31]}  Nc6 {[%clk 0:02:56]} 5. Nbd2 {[%clk 0:02:31]}  Bg4 {[%clk 0:02:53]} 6. h3 {[%clk 0:02:30]}  Bh5 {[%clk 0:02:53]} 7. c3 {[%clk 0:02:30]}  a6 {[%clk 0:02:47]} 8. dxc5 {[%clk 0:02:29]}  e5 {[%clk 0:02:46]} 9. Bg5 {[%clk 0:02:23]}  e4 {[%clk 0:02:31]} 10. g4 {[%clk 0:02:22]}  Bg6 {[%clk 0:02:31]} 11. Nd4 {[%clk 0:02:22]}  Bxc5 {[%clk 0:02:29]} 12. h4 {[%clk 0:02:03]}  h6 {[%clk 0:02:22]} 13. Bf4 {[%clk 0:01:59]}  Qd7 {[%clk 0:02:03]} 14. Bh3 {[%clk 0:01:55]}  Qe7 {[%clk 0:01:50]} 15. Qa4 {[%clk 0:01:50]}  Bxd4 {[%clk 0:01:23]} 16. cxd4 {[%clk 0:01:43]}  b5 {[%clk 0:01:22]} 17. Qb3 {[%clk 0:01:39]}  Nb4 {[%clk 0:01:19]} 18. O-O {[%clk 0:01:21]}  O-O {[%clk 0:01:08]} 19. Rac1 {[%clk 0:00:55]}  Nd3 {[%clk 0:01:08]} 20. Rc7 {[%clk 0:00:54]}  Qd8 {[%clk 0:01:00]} 21. Bg3 {[%clk 0:00:54]}  Rc8 {[%clk 0:00:52]} 22. Rc3 {[%clk 0:00:42]}  Qd7 {[%clk 0:00:40]} 23. f3 {[%clk 0:00:15]}  Rxc3 {[%clk 0:00:36]} 24. bxc3 {[%clk 0:00:13]}  exf3 {[%clk 0:00:28]} 25. Nxf3 {[%clk 0:00:11]}  Nxg4 {[%clk 0:00:25]} 26. Nh2 {[%clk 0:00:06]}  h5 {[%clk 0:00:21]} 27. Qd1 {[%clk 0:00:06]}  Qe7 {[%clk 0:00:17]} 28. Nxg4 {[%clk 0:00:03]}  hxg4 {[%clk 0:00:17]} 29. Qxg4 {[%clk 0:00:02]}  Qxe3+ {[%clk 0:00:17]} 30. Kh2 {[%clk 0:00:02]}  Be4 {[%clk 0:00:12]} 31. Rg1 {[%clk 0:00:02]}  Nf2 {[%clk 0:00:10]} 32. Bxf2 {[%clk 0:00:01]}  Qxf2+ {[%clk 0:00:11]} 33. Bg2 {[%clk 0:00:02]}  Re8 {[%clk 0:00:08]} 34. Qg3 {[%clk 0:00:02]}  Qxg3+ {[%clk 0:00:07]} 35. Kxg3 {[%clk 0:00:03]}  Bxg2 {[%clk 0:00:08]} 36. Kxg2 {[%clk 0:00:04]}  Re2+ {[%clk 0:00:08]} 37. Kf3 {[%clk 0:00:03]}  Rxa2 {[%clk 0:00:09]} 38. Rg5 {[%clk 0:00:02]}  Ra3 {[%clk 0:00:09]} 39. Rxd5 {[%clk 0:00:02]}  Rxc3+ {[%clk 0:00:10]} 40. Kf4 {[%clk 0:00:02]}  Kf8 {[%clk 0:00:10]} 41. Rd7 {[%clk 0:00:02]}  b4 {[%clk 0:00:08]} 42. Rb7 {[%clk 0:00:01]}  a5 {[%clk 0:00:08]} 43. d5 {[%clk 0:00:02]}  Ke8 {[%clk 0:00:05]} 44. d6 {[%clk 0:00:03]}  b3 {[%clk 0:00:05]} 45. Ke5 {[%clk 0:00:02]}  a4 {[%clk 0:00:05]} 46. Kd5 {[%clk 0:00:01]}  Rc2 {[%clk 0:00:05]} 0-1


[Site "https://www.chess.com"]

[Event "Titled Tuesday Blitz January 03 Late 2023"]
[White "aidenzhouu"]
[Black "Martinez, Marcel"]
[BlackFideId "2016249"]
[WhiteElo "2395"]
[BlackElo "2402"]
[Result "0-1"]
[Round "09"]
[TimeControl "180+2"]
[Date "2023.01.03"]
[WhiteClock "0:00:06"]
[BlackClock "0:00:13"]

1. d4 {[%clk 0:03:00]}  Nf6 {[%clk 0:02:59]} 2. c4 {[%clk 0:03:01]}  c5 {[%clk 0:02:59]} 3. d5 {[%clk 0:03:01]}  b5 {[%clk 0:02:59]} 4. cxb5 {[%clk 0:03:01]}  a6 {[%clk 0:02:59]} 5. bxa6 {[%clk 0:03:02]}  g6 {[%clk 0:02:59]} 6. Nc3 {[%clk 0:03:03]}  Bxa6 {[%clk 0:02:58]} 7. e4 {[%clk 0:03:03]}  Bxf1 {[%clk 0:02:57]} 8. Kxf1 {[%clk 0:03:04]}  d6 {[%clk 0:02:57]} 9. g3 {[%clk 0:03:04]}  Bg7 {[%clk 0:02:58]} 10. Nf3 {[%clk 0:03:03]}  O-O {[%clk 0:02:57]} 11. Kg2 {[%clk 0:03:04]}  Qa5 {[%clk 0:02:55]} 12. Bd2 {[%clk 0:02:54]}  Nbd7 {[%clk 0:02:54]} 13. a4 {[%clk 0:02:53]}  Qa6 {[%clk 0:02:40]} 14. Qc2 {[%clk 0:02:41]}  Ng4 {[%clk 0:02:30]} 15. Nb5 {[%clk 0:02:29]}  Rab8 {[%clk 0:02:23]} 16. Bc3 {[%clk 0:02:21]}  Nde5 {[%clk 0:02:13]} 17. Nxe5 {[%clk 0:02:21]}  Nxe5 {[%clk 0:02:12]} 18. b3 {[%clk 0:02:20]}  f5 {[%clk 0:01:59]} 19. Nc7 {[%clk 0:01:53]}  Qb7 {[%clk 0:01:58]} 20. Ne6 {[%clk 0:01:50]}  fxe4 {[%clk 0:01:43]} 21. Nxf8 {[%clk 0:00:54]}  Qxd5 {[%clk 0:01:33]} 22. Rad1 {[%clk 0:00:42]}  Nd3 {[%clk 0:00:54]} 23. Bxg7 {[%clk 0:00:32]}  Kxg7 {[%clk 0:00:54]} 24. Nd7 {[%clk 0:00:21]}  Rxb3 {[%clk 0:00:47]} 25. a5 {[%clk 0:00:15]}  e3+ {[%clk 0:00:34]} 26. f3 {[%clk 0:00:15]}  c4 {[%clk 0:00:31]} 27. Nb6 {[%clk 0:00:15]}  Qd4 {[%clk 0:00:20]} 28. Nxc4 {[%clk 0:00:13]}  Rc3 {[%clk 0:00:20]} 29. Qe2 {[%clk 0:00:11]}  Qxc4 {[%clk 0:00:15]} 30. Qxe3 {[%clk 0:00:11]}  e5 {[%clk 0:00:14]} 31. Rd2 {[%clk 0:00:10]}  Nf4+ {[%clk 0:00:14]} 32. Qxf4 {[%clk 0:00:07]}  exf4 {[%clk 0:00:14]} 33. Re1 {[%clk 0:00:07]}  Rc2 {[%clk 0:00:13]} 34. Ree2 {[%clk 0:00:07]}  Rxd2 {[%clk 0:00:14]} 35. Rxd2 {[%clk 0:00:08]}  fxg3 {[%clk 0:00:14]} 36. hxg3 {[%clk 0:00:08]}  Qb4 {[%clk 0:00:14]} 37. Rd1 {[%clk 0:00:08]}  Qb2+ {[%clk 0:00:14]} 38. Kh3 {[%clk 0:00:08]}  Qa3 {[%clk 0:00:13]} 39. Rd5 {[%clk 0:00:07]}  Qxf3 {[%clk 0:00:13]} 40. Rxd6 {[%clk 0:00:07]}  h5 {[%clk 0:00:13]} 41. Rd7+ {[%clk 0:00:06]}  Kh6 {[%clk 0:00:13]} 42. Rd5 {[%clk 0:00:06]}  Qh1# {[%clk 0:00:13]} 0-1


[Site "https://www.chess.com"]

[Event "Titled Tuesday Blitz January 03 Late 2023"]
[White "Suvorov, Luca"]
[Black "Egorov, Evgeny"]
[WhiteFideId "12977071"]
[BlackFideId "13700421"]
[WhiteElo "2310"]
[BlackElo "2294"]
[Result "1-0"]
[Round "09"]
[TimeControl "180+2"]
[Date "2023.01.03"]
[WhiteClock "0:00:06"]
[BlackClock "0:00:01"]

1. d4 {[%clk 0:03:00]}  d5 {[%clk 0:02:59]} 2. c4 {[%clk 0:02:55]}  Nc6 {[%clk 0:02:58]} 3. Nc3 {[%clk 0:02:51]}  dxc4 {[%clk 0:02:58]} 4. d5 {[%clk 0:02:51]}  Na5 {[%clk 0:02:58]} 5. e4 {[%clk 0:02:36]}  c6 {[%clk 0:02:57]} 6. Nf3 {[%clk 0:02:34]}  Bg4 {[%clk 0:02:55]} 7. h3 {[%clk 0:02:30]}  Bxf3 {[%clk 0:02:47]} 8. Qxf3 {[%clk 0:02:31]}  Nf6 {[%clk 0:02:47]} 9. Bg5 {[%clk 0:02:27]}  h6 {[%clk 0:02:45]} 10. Bh4 {[%clk 0:02:16]}  Qb6 {[%clk 0:02:37]} 11. O-O-O {[%clk 0:02:12]}  g5 {[%clk 0:02:36]} 12. Bg3 {[%clk 0:02:11]}  Bg7 {[%clk 0:02:35]} 13. d6 {[%clk 0:02:07]}  exd6 {[%clk 0:02:23]} 14. Bxd6 {[%clk 0:02:08]}  O-O-O {[%clk 0:02:21]} 15. e5 {[%clk 0:02:06]}  Nd7 {[%clk 0:02:10]} 16. Qf5 {[%clk 0:00:55]}  Rhe8 {[%clk 0:02:07]} 17. Be2 {[%clk 0:00:56]}  Bxe5 {[%clk 0:02:01]} 18. Bg4 {[%clk 0:00:56]}  h5 {[%clk 0:01:18]} 19. Bxe5 {[%clk 0:00:43]}  hxg4 {[%clk 0:01:12]} 20. Bf6 {[%clk 0:00:43]}  gxh3 {[%clk 0:01:01]} 21. Bxd8 {[%clk 0:00:40]}  Rxd8 {[%clk 0:00:46]} 22. Rxh3 {[%clk 0:00:39]}  Qc7 {[%clk 0:00:44]} 23. Rh7 {[%clk 0:00:32]}  b5 {[%clk 0:00:42]} 24. Rxf7 {[%clk 0:00:31]}  Nb7 {[%clk 0:00:41]} 25. Ne4 {[%clk 0:00:21]}  g4 {[%clk 0:00:34]} 26. Kb1 {[%clk 0:00:19]}  b4 {[%clk 0:00:34]} 27. Nf6 {[%clk 0:00:18]}  Nc5 {[%clk 0:00:23]} 28. Nxd7 {[%clk 0:00:18]}  Nxd7 {[%clk 0:00:20]} 29. Qxg4 {[%clk 0:00:18]}  c3 {[%clk 0:00:17]} 30. Qxb4 {[%clk 0:00:18]}  Qe5 {[%clk 0:00:15]} 31. Qf4 {[%clk 0:00:14]}  Qb5 {[%clk 0:00:12]} 32. b3 {[%clk 0:00:13]}  Qe2 {[%clk 0:00:12]} 33. Qc1 {[%clk 0:00:06]}  Nc5 {[%clk 0:00:07]} 34. Rxd8+ {[%clk 0:00:06]}  Kxd8 {[%clk 0:00:06]} 35. Rf3 {[%clk 0:00:07]}  Ne4 {[%clk 0:00:05]} 36. Re3 {[%clk 0:00:06]}  Nd2+ {[%clk 0:00:04]} 37. Ka1 {[%clk 0:00:06]}  Qxf2 {[%clk 0:00:02]} 38. Rxc3 {[%clk 0:00:05]}  Ne4 {[%clk 0:00:01]} 39. Rc2 {[%clk 0:00:06]} 1-0


[Site "https://www.chess.com"]

[Event "Titled Tuesday Blitz January 03 Late 2023"]
[White "Senthil, Maran K"]
[Black "Horcajuelo Rocamora, Martin"]
[WhiteFideId "25035681"]
[BlackFideId "24573027"]
[WhiteElo "2209"]
[BlackElo "2107"]
[Result "1-0"]
[Round "09"]
[TimeControl "180+2"]
[Date "2023.01.03"]
[WhiteClock "0:00:58"]
[BlackClock "0:00:02"]

1. d4 {[%clk 0:02:57]}  c5 {[%clk 0:02:32]} 2. e3 {[%clk 0:02:54]}  cxd4 {[%clk 0:02:32]} 3. exd4 {[%clk 0:02:55]}  b6 {[%clk 0:02:31]} 4. Nf3 {[%clk 0:02:55]}  Bb7 {[%clk 0:02:31]} 5. Bd3 {[%clk 0:02:54]}  g6 {[%clk 0:02:31]} 6. O-O {[%clk 0:02:53]}  Bg7 {[%clk 0:02:32]} 7. c3 {[%clk 0:02:54]}  Nf6 {[%clk 0:02:32]} 8. Qe2 {[%clk 0:02:54]}  O-O {[%clk 0:02:33]} 9. Nbd2 {[%clk 0:02:54]}  d6 {[%clk 0:02:33]} 10. a4 {[%clk 0:02:54]}  Nbd7 {[%clk 0:02:34]} 11. a5 {[%clk 0:02:54]}  Re8 {[%clk 0:02:33]} 12. a6 {[%clk 0:02:53]}  Bc6 {[%clk 0:02:33]} 13. Ne4 {[%clk 0:02:51]}  Rc8 {[%clk 0:02:31]} 14. Bg5 {[%clk 0:02:50]}  h6 {[%clk 0:02:28]} 15. Bxf6 {[%clk 0:02:46]}  Nxf6 {[%clk 0:02:29]} 16. Nxf6+ {[%clk 0:02:47]}  Bxf6 {[%clk 0:02:30]} 17. Be4 {[%clk 0:02:47]}  Bxe4 {[%clk 0:02:26]} 18. Qxe4 {[%clk 0:02:48]}  e5 {[%clk 0:02:27]} 19. dxe5 {[%clk 0:02:47]}  dxe5 {[%clk 0:02:28]} 20. Rfd1 {[%clk 0:02:45]}  Qc7 {[%clk 0:02:28]} 21. Rd5 {[%clk 0:02:43]}  Red8 {[%clk 0:02:27]} 22. Rad1 {[%clk 0:02:42]}  Kg7 {[%clk 0:02:27]} 23. h4 {[%clk 0:02:41]}  h5 {[%clk 0:02:25]} 24. g3 {[%clk 0:02:34]}  Rxd5 {[%clk 0:02:13]} 25. Rxd5 {[%clk 0:02:33]}  Re8 {[%clk 0:02:10]} 26. Nd2 {[%clk 0:02:21]}  Qc6 {[%clk 0:02:05]} 27. Qd3 {[%clk 0:02:21]}  Re7 {[%clk 0:01:56]} 28. Ne4 {[%clk 0:02:14]}  Qa4 {[%clk 0:01:56]} 29. Rd6 {[%clk 0:02:07]}  Re6 {[%clk 0:01:05]} 30. Rxe6 {[%clk 0:02:04]}  fxe6 {[%clk 0:01:06]} 31. c4 {[%clk 0:02:04]}  Be7 {[%clk 0:00:49]} 32. Ng5 {[%clk 0:01:54]}  Bxg5 {[%clk 0:00:11]} 33. hxg5 {[%clk 0:01:55]}  Qe8 {[%clk 0:00:10]} 34. Qd6 {[%clk 0:01:52]}  Kf7 {[%clk 0:00:08]} 35. Qxe5 {[%clk 0:01:50]}  Qe7 {[%clk 0:00:09]} 36. f4 {[%clk 0:01:49]}  Qd8 {[%clk 0:00:08]} 37. Kh2 {[%clk 0:01:23]}  Qd2+ {[%clk 0:00:08]} 38. Kh3 {[%clk 0:01:23]}  Qd8 {[%clk 0:00:08]} 39. b4 {[%clk 0:01:19]}  Qd1 {[%clk 0:00:04]} 40. Qf6+ {[%clk 0:01:18]}  Ke8 {[%clk 0:00:04]} 41. Qxe6+ {[%clk 0:01:15]}  Kf8 {[%clk 0:00:05]} 42. Qf6+ {[%clk 0:01:15]}  Ke8 {[%clk 0:00:05]} 43. Qxg6+ {[%clk 0:01:16]}  Kf8 {[%clk 0:00:04]} 44. Qf6+ {[%clk 0:01:16]}  Ke8 {[%clk 0:00:04]} 45. Qe5+ {[%clk 0:01:07]}  Kf8 {[%clk 0:00:04]} 46. Qb8+ {[%clk 0:01:07]}  Kf7 {[%clk 0:00:03]} 47. Qxa7+ {[%clk 0:01:07]}  Kf8 {[%clk 0:00:03]} 48. Qa8+ {[%clk 0:01:05]}  Kf7 {[%clk 0:00:04]} 49. Qb7+ {[%clk 0:01:05]}  Kf8 {[%clk 0:00:04]} 50. a7 {[%clk 0:00:58]}  Qg4+ {[%clk 0:00:03]} 51. Kh2 {[%clk 0:00:58]}  Qe2+ {[%clk 0:00:02]} 52. Qg2 {[%clk 0:00:58]} 1-0


[Site "https://www.chess.com"]

[Event "Titled Tuesday Blitz January 03 Late 2023"]
[White "Paspuel, Trosky"]
[Black "Karas, Marek"]
[WhiteFideId "3602150"]
[BlackFideId "14928558"]
[WhiteElo "1721"]
[BlackElo "2227"]
[Result "1-0"]
[Round "09"]
[TimeControl "180+2"]
[Date "2023.01.03"]
[WhiteClock "0:00:03"]
[BlackClock "0:00:02"]

1. c4 {[%clk 0:03:00]}  e5 {[%clk 0:02:59]} 2. g3 {[%clk 0:02:57]}  Nf6 {[%clk 0:02:59]} 3. Bg2 {[%clk 0:02:56]}  c6 {[%clk 0:02:59]} 4. Nf3 {[%clk 0:02:56]}  e4 {[%clk 0:03:00]} 5. Nd4 {[%clk 0:02:56]}  Qb6 {[%clk 0:03:00]} 6. Nc2 {[%clk 0:02:48]}  d5 {[%clk 0:03:00]} 7. d3 {[%clk 0:02:37]}  exd3 {[%clk 0:02:56]} 8. Qxd3 {[%clk 0:02:37]}  Bc5 {[%clk 0:02:54]} 9. O-O {[%clk 0:02:36]}  dxc4 {[%clk 0:02:49]} 10. Qxc4 {[%clk 0:02:36]}  Be6 {[%clk 0:02:49]} 11. Qh4 {[%clk 0:02:34]}  O-O {[%clk 0:02:48]} 12. Nc3 {[%clk 0:02:34]}  Be7 {[%clk 0:02:44]} 13. Nd4 {[%clk 0:02:19]}  Bg4 {[%clk 0:02:32]} 14. Be3 {[%clk 0:02:04]}  Qa6 {[%clk 0:02:23]} 15. Ne4 {[%clk 0:02:01]}  Bc8 {[%clk 0:02:14]} 16. Bg5 {[%clk 0:01:55]}  Nbd7 {[%clk 0:02:08]} 17. Nf5 {[%clk 0:01:54]}  Bd8 {[%clk 0:02:03]} 18. Bh6 {[%clk 0:01:42]}  Nxe4 {[%clk 0:01:49]} 19. Qg4 {[%clk 0:01:25]}  g6 {[%clk 0:01:40]} 20. Qxe4 {[%clk 0:00:35]}  gxf5 {[%clk 0:01:27]} 21. Qxf5 {[%clk 0:00:36]}  Qc4 {[%clk 0:01:11]} 22. Be4 {[%clk 0:00:26]}  Qxe4 {[%clk 0:00:49]} 23. Qxe4 {[%clk 0:00:27]}  Nf6 {[%clk 0:00:45]} 24. Qf4 {[%clk 0:00:21]}  Nh5 {[%clk 0:00:35]} 25. Qe5 {[%clk 0:00:16]}  Bg4 {[%clk 0:00:28]} 26. Bxf8 {[%clk 0:00:12]}  Kxf8 {[%clk 0:00:24]} 27. h3 {[%clk 0:00:13]}  Bf6 {[%clk 0:00:21]} 28. Qc5+ {[%clk 0:00:11]}  Be7 {[%clk 0:00:18]} 29. Qe5 {[%clk 0:00:11]}  Bf6 {[%clk 0:00:17]} 30. Qa5 {[%clk 0:00:12]}  Bxe2 {[%clk 0:00:10]} 31. Rfe1 {[%clk 0:00:09]}  Bb5 {[%clk 0:00:06]} 32. Qd2 {[%clk 0:00:07]}  Kg8 {[%clk 0:00:02]} 33. a4 {[%clk 0:00:07]}  Ba6 {[%clk 0:00:02]} 34. b4 {[%clk 0:00:07]}  Bg7 {[%clk 0:00:01]} 35. Qg5 {[%clk 0:00:07]}  Nf6 {[%clk 0:00:02]} 36. Re7 {[%clk 0:00:07]}  Bd3 {[%clk 0:00:01]} 37. Rd1 {[%clk 0:00:05]}  Bg6 {[%clk 0:00:01]} 38. Rde1 {[%clk 0:00:04]}  h6 {[%clk 0:00:02]} 39. Qc5 {[%clk 0:00:04]}  a5 {[%clk 0:00:02]} 40. bxa5 {[%clk 0:00:03]}  Bf8 {[%clk 0:00:02]} 41. Qb6 {[%clk 0:00:03]}  Bxe7 {[%clk 0:00:02]} 42. Rxe7 {[%clk 0:00:03]}  Nd5 {[%clk 0:00:03]} 43. Qxb7 {[%clk 0:00:02]}  Rxa5 {[%clk 0:00:03]} 44. Re8+ {[%clk 0:00:01]}  Kg7 {[%clk 0:00:03]} 45. Qxc6 {[%clk 0:00:02]}  Nf6 {[%clk 0:00:02]} 46. Kg2 {[%clk 0:00:01]}  Nxe8 {[%clk 0:00:02]} 47. Qxe8 {[%clk 0:00:02]}  Ra6 {[%clk 0:00:01]} 48. Qe5+ {[%clk 0:00:03]}  Kh7 {[%clk 0:00:02]} 49. Qb5 {[%clk 0:00:03]}  Re6 {[%clk 0:00:01]} 50. g4 {[%clk 0:00:02]}  Be4+ {[%clk 0:00:01]} 51. Kg3 {[%clk 0:00:02]}  Bg6 {[%clk 0:00:01]} 52. a5 {[%clk 0:00:03]}  Rd6 {[%clk 0:00:01]} 53. a6 {[%clk 0:00:03]}  Bd3 {[%clk 0:00:01]} 54. Qc5 {[%clk 0:00:01]}  Rxa6 {[%clk 0:00:02]} 55. Qd4 {[%clk 0:00:01]}  Bg6 {[%clk 0:00:02]} 56. Qe3 {[%clk 0:00:01]}  Re6 {[%clk 0:00:02]} 57. Qc3 {[%clk 0:00:02]}  h5 {[%clk 0:00:02]} 58. f4 {[%clk 0:00:02]}  hxg4 {[%clk 0:00:02]} 59. hxg4 {[%clk 0:00:03]}  f6 {[%clk 0:00:01]} 60. f5 {[%clk 0:00:03]}  Bxf5 {[%clk 0:00:01]} 61. gxf5 {[%clk 0:00:03]}  Re7 {[%clk 0:00:01]} 62. Qc5 {[%clk 0:00:04]}  Rf7 {[%clk 0:00:01]} 63. Qd6 {[%clk 0:00:04]}  Kg7 {[%clk 0:00:01]} 64. Kf4 {[%clk 0:00:04]}  Ra7 {[%clk 0:00:02]} 65. Qb6 {[%clk 0:00:05]}  Re7 {[%clk 0:00:02]} 66. Kg4 {[%clk 0:00:05]}  Re5 {[%clk 0:00:02]} 67. Qd6 {[%clk 0:00:03]}  Re8 {[%clk 0:00:02]} 68. Qd7+ {[%clk 0:00:04]}  Kf8 {[%clk 0:00:02]} 69. Kh5 {[%clk 0:00:04]}  Re7 {[%clk 0:00:02]} 70. Qd8+ {[%clk 0:00:03]}  Kf7 {[%clk 0:00:02]} 71. Qd5+ {[%clk 0:00:04]}  Kg7 {[%clk 0:00:03]} 72. Qg2+ {[%clk 0:00:03]}  Kf8 {[%clk 0:00:03]} 73. Qf3 {[%clk 0:00:02]}  Rg7 {[%clk 0:00:02]} 74. Qa8+ {[%clk 0:00:02]}  Kf7 {[%clk 0:00:02]} 75. Qb7+ {[%clk 0:00:02]}  Kg8 {[%clk 0:00:02]} 76. Qc6 {[%clk 0:00:02]}  Rg5+ {[%clk 0:00:02]} 77. Kh6 {[%clk 0:00:02]}  Rxf5 {[%clk 0:00:02]} 78. Qe8# {[%clk 0:00:03]} 1-0


[Site "https://www.chess.com"]

[Event "Titled Tuesday Blitz January 03 Late 2023"]
[White "Jarocka, Liwia"]
[Black "Karthik, Advaith"]
[WhiteFideId "21807558"]
[BlackFideId "30946050"]
[WhiteElo "2225"]
[BlackElo "2075"]
[Result "1/2-1/2"]
[Round "09"]
[TimeControl "180+2"]
[Date "2023.01.03"]
[WhiteClock "0:00:57"]
[BlackClock "0:01:15"]

1. d4 {[%clk 0:03:00]}  Nf6 {[%clk 0:02:58]} 2. Nf3 {[%clk 0:02:59]}  e6 {[%clk 0:02:58]} 3. c4 {[%clk 0:02:53]}  b6 {[%clk 0:02:57]} 4. g3 {[%clk 0:02:51]}  Bb7 {[%clk 0:02:57]} 5. Bg2 {[%clk 0:02:52]}  Be7 {[%clk 0:02:57]} 6. O-O {[%clk 0:02:52]}  O-O {[%clk 0:02:57]} 7. b3 {[%clk 0:02:53]}  d6 {[%clk 0:02:56]} 8. Bb2 {[%clk 0:02:54]}  Ne4 {[%clk 0:02:55]} 9. Nbd2 {[%clk 0:02:48]}  Nxd2 {[%clk 0:02:54]} 10. Qxd2 {[%clk 0:02:48]}  Nd7 {[%clk 0:02:53]} 11. Rac1 {[%clk 0:02:48]}  Nf6 {[%clk 0:02:50]} 12. Rfd1 {[%clk 0:02:47]}  Ne4 {[%clk 0:02:50]} 13. Qc2 {[%clk 0:02:46]}  f5 {[%clk 0:02:50]} 14. Nd2 {[%clk 0:02:40]}  d5 {[%clk 0:02:45]} 15. Nxe4 {[%clk 0:02:32]}  dxe4 {[%clk 0:02:45]} 16. e3 {[%clk 0:02:29]}  Bf6 {[%clk 0:02:39]} 17. c5 {[%clk 0:02:24]}  Bd5 {[%clk 0:02:38]} 18. Ba3 {[%clk 0:02:18]}  Rf7 {[%clk 0:02:35]} 19. Bf1 {[%clk 0:01:57]}  c6 {[%clk 0:02:33]} 20. Bc4 {[%clk 0:01:49]}  b5 {[%clk 0:02:32]} 21. Bxd5 {[%clk 0:01:41]}  Qxd5 {[%clk 0:02:31]} 22. b4 {[%clk 0:01:34]}  a5 {[%clk 0:02:28]} 23. Ra1 {[%clk 0:01:30]}  Rfa7 {[%clk 0:02:27]} 24. Rd2 {[%clk 0:01:27]}  g5 {[%clk 0:02:15]} 25. bxa5 {[%clk 0:01:21]}  Rxa5 {[%clk 0:02:15]} 26. Bb4 {[%clk 0:01:21]}  Ra4 {[%clk 0:02:15]} 27. Qb2 {[%clk 0:01:18]}  h5 {[%clk 0:02:10]} 28. a3 {[%clk 0:01:17]}  Qc4 {[%clk 0:02:02]} 29. Rc1 {[%clk 0:01:15]}  Qd5 {[%clk 0:02:02]} 30. Rb1 {[%clk 0:01:15]}  Kf7 {[%clk 0:02:01]} 31. Qb3 {[%clk 0:01:16]}  Kg6 {[%clk 0:01:56]} 32. Qxd5 {[%clk 0:01:15]}  exd5 {[%clk 0:01:57]} 33. Kg2 {[%clk 0:01:14]}  Bd8 {[%clk 0:01:56]} 34. f4 {[%clk 0:01:12]}  Ba5 {[%clk 0:01:50]} 35. Rdb2 {[%clk 0:01:08]}  Bxb4 {[%clk 0:01:47]} 36. axb4 {[%clk 0:01:09]}  Ra3 {[%clk 0:01:47]} 37. Rb3 {[%clk 0:01:09]}  R8a4 {[%clk 0:01:46]} 38. R1b2 {[%clk 0:01:04]}  Ra1 {[%clk 0:01:45]} 39. h4 {[%clk 0:01:02]}  gxh4 {[%clk 0:01:45]} 40. gxh4 {[%clk 0:01:02]}  Kf6 {[%clk 0:01:37]} 41. Rb1 {[%clk 0:01:01]}  R1a2+ {[%clk 0:01:28]} 42. R1b2 {[%clk 0:01:00]}  Ra8 {[%clk 0:01:20]} 43. Rxa2 {[%clk 0:00:56]}  Rxa2+ {[%clk 0:01:21]} 44. Kg3 {[%clk 0:00:57]}  Ke6 {[%clk 0:01:19]} 45. Kh3 {[%clk 0:00:57]}  Kd7 {[%clk 0:01:15]} 46. Kg3 {[%clk 0:00:57]}  Kc7 {[%clk 0:01:16]} 47. Kh3 {[%clk 0:00:58]}  Kb7 {[%clk 0:01:16]} 48. Kg3 {[%clk 0:00:57]}  Ra1 {[%clk 0:01:16]} 49. Kh3 {[%clk 0:00:58]}  Rf1 {[%clk 0:01:16]} 50. Kg3 {[%clk 0:00:58]}  Rf3+ {[%clk 0:01:16]} 51. Kg2 {[%clk 0:00:58]}  Kc7 {[%clk 0:01:14]} 52. Ra3 {[%clk 0:00:56]}  Kb7 {[%clk 0:01:15]} 53. Rb3 {[%clk 0:00:56]}  Kb8 {[%clk 0:01:14]} 54. Ra3 {[%clk 0:00:57]}  Kb7 {[%clk 0:01:15]} 55. Rb3 {[%clk 0:00:57]} 1/2-1/2


[Site "https://www.chess.com"]